fUSD/lending_fUSD_20250107
["ID","MTS","AMOUNT","RATE_DAILY","PERIOD"]
[347978087,1736259040104,-500.0,9.971e-05,2]
[347978088,1736259040114,-224.41222,9.971e-05,2]
[347978089,1736259040124,-861.98,9.971e-05,2]
[347978090,1736259040136,-1568.26,9.971e-05,2]
[347978091,1736259040147,-500.0,9.971e-05,2]
[347978092,1736259040157,-500.0,9.971e-05,2]
[347978093,1736259040167,-500.0,9.971e-05,2]
[347978094,1736259040177,-1139.16,9.971e-05,2]
[347978095,1736259040187,-804.35,9.971e-05,2]
[347978096,1736259040196,-7016.98,9.971e-05,2]
[347978097,1736259040205,-500.0,9.971e-05,2]
[347978098,1736259040215,-500.0,9.971e-05,2]
[347978099,1736259040225,-1734.76,9.971e-05,2]
[347978100,1736259040234,-500.0,9.971e-05,2]
[347978101,1736259040244,-1136.92,9.971e-05,2]
[347978103,1736259040253,-500.0,9.971e-05,2]
[347978105,1736259040262,-500.0,9.971e-05,2]
[347978106,1736259040272,-500.0,9.971e-05,2]
[347978107,1736259040282,-500.0,9.971e-05,2]
[347978108,1736259040291,-500.0,9.971e-05,2]
[347978109,1736259040300,-500.0,9.971e-05,2]
[347978110,1736259040310,-547.56,9.971e-05,2]
[347978111,1736259040321,-500.0,9.971e-05,2]
[347978112,1736259040331,-500.0,9.971e-05,2]
[347978113,1736259040343,-712.63,9.971e-05,2]
[347978114,1736259040353,-500.0,9.971e-05,2]
[347978115,1736259040363,-500.0,9.971e-05,2]
[347978116,1736259040373,-500.0,9.971e-05,2]
[347978117,1736259040383,-500.0,9.971e-05,2]
[347978118,1736259040392,-500.0,9.971e-05,2]
[347978119,1736259040402,-500.0,9.971e-05,2]
[347978120,1736259040412,-4768.43,9.971e-05,2]
[347978121,1736259040422,-500.0,9.971e-05,2]
[347978122,1736259040432,-500.0,9.971e-05,2]
[347978123,1736259040443,-1127.55,9.971e-05,2]
[347978124,1736259040453,-500.0,9.971e-05,2]
[347978125,1736259040463,-500.0,9.971e-05,2]
[347978126,1736259040472,-1638.02,9.971e-05,2]
[347978127,1736259040704,-500.0,9.971e-05,2]
[347978128,1736259040714,-500.0,9.971e-05,2]
[347978129,1736259040724,-500.0,9.971e-05,2]
[347978130,1736259040734,-1405.01,9.971e-05,2]
[347978131,1736259040743,-511.5,9.971e-05,2]
[347978132,1736259040753,-552.76,9.971e-05,2]
[347978133,1736259040762,-500.0,9.971e-05,2]
[347978134,1736259040771,-500.0,9.971e-05,2]
[347978135,1736259040781,-500.0,9.971e-05,2]
[347978136,1736259040790,-614.54,9.971e-05,2]
[347978137,1736259040800,-957.11,9.971e-05,2]
[347978138,1736259040809,-1114.88,9.971e-05,2]
[347978139,1736259040821,-500.0,9.971e-05,2]
[347978140,1736259040831,-500.0,9.971e-05,2]
[347978141,1736259040841,-500.0,9.971e-05,2]
[347978142,1736259040850,-874.19,9.971e-05,2]
[347978143,1736259040860,-500.0,9.971e-05,2]
[347978144,1736259040870,-500.0,9.971e-05,2]
[347978145,1736259040880,-500.0,9.971e-05,2]
[347978146,1736259040891,-1150.61,9.971e-05,2]
[347978147,1736259040901,-500.0,9.971e-05,2]
[347978148,1736259040911,-500.0,9.971e-05,2]
[347978149,1736259040921,-1094.43,9.971e-05,2]
[347978150,1736259040930,-500.0,9.971e-05,2]
[347978151,1736259040940,-500.0,9.971e-05,2]
[347978152,1736259040950,-500.0,9.971e-05,2]
[347978153,1736259040959,-500.0,9.971e-05,2]
[347978154,1736259040969,-500.0,9.971e-05,2]
[347978155,1736259040979,-500.0,9.971e-05,2]
[347978156,1736259040988,-860.05,9.971e-05,2]
[347978157,1736259040998,-491.50587985,9.971e-05,2]
[347978158,1736259041007,-500.0,9.971e-05,2]
[347978159,1736259041016,-500.0,9.971e-05,2]
[347978160,1736259041026,-500.0,9.971e-05,2]
[347978161,1736259041035,-500.0,9.971e-05,2]
[347978162,1736259041045,-1279.22,9.971e-05,2]
[347978163,1736259041057,-500.0,9.971e-05,2]
[347978164,1736259041066,-218.89883444,9.971e-05,2]
[347978165,1736259041081,-500.0,9.971e-05,2]
[347978166,1736259041091,-500.0,9.971e-05,2]
[347978167,1736259041100,-500.0,9.971e-05,2]
[347978168,1736259041110,-500.0,9.971e-05,2]
[347978169,1736259041119,-249.83218035,9.972e-05,2]
[347978170,1736259041129,-500.0,9.972e-05,2]
[347978171,1736259041145,-500.0,9.972e-05,2]
[347978172,1736259041155,-500.0,9.972e-05,2]
[347978173,1736259041164,-500.0,9.972e-05,2]
[347978174,1736259041173,-500.0,9.972e-05,2]
[347978175,1736259041183,-500.0,9.972e-05,2]
[347978176,1736259041192,-500.0,9.972e-05,2]
[347978177,1736259041202,-500.0,9.972e-05,2]
[347978178,1736259041211,-500.0,9.972e-05,2]
[347978179,1736259041221,-500.0,9.972e-05,2]
[347978180,1736259041230,-500.0,9.972e-05,2]
[347978181,1736259041240,-500.0,9.972e-05,2]
[347978182,1736259041249,-500.0,9.972e-05,2]
[347978183,1736259041258,-649.77,9.972e-05,2]
[347978184,1736259041267,-500.0,9.972e-05,2]
[347978185,1736259041277,-500.0,9.972e-05,2]
[347978186,1736259041287,-500.0,9.972e-05,2]
[347978187,1736259041296,-500.0,9.972e-05,2]
[347978188,1736259041305,-500.0,9.972e-05,2]
[347978189,1736259041315,-500.0,9.972e-05,2]
[347978190,1736259041328,-500.0,9.972e-05,2]
[347978191,1736259041339,-500.0,9.972e-05,2]
[347978192,1736259041349,-500.0,9.972e-05,2]
[347978193,1736259041359,-500.0,9.972e-05,2]
[347978194,1736259041369,-500.0,9.972e-05,2]
[347978195,1736259041379,-500.0,9.972e-05,2]
[347978196,1736259041389,-500.0,9.972e-05,2]
[347978197,1736259041398,-500.0,9.972e-05,2]
[347978198,1736259041407,-500.0,9.972e-05,2]
[347978199,1736259041418,-500.0,9.972e-05,2]
[347978200,1736259041428,-500.0,9.972e-05,2]
[347978201,1736259041437,-500.0,9.972e-05,2]
[347978202,1736259041447,-532.34,9.972e-05,2]
[347978203,1736259041457,-500.0,9.972e-05,2]
[347978204,1736259041466,-482.79952404,9.972e-05,2]
[347978205,1736259041475,-500.0,9.972e-05,2]
[347978206,1736259041485,-500.0,9.972e-05,2]
[347978207,1736259041494,-500.0,9.972e-05,2]
[347978208,1736259041503,-500.0,9.972e-05,2]
[347978209,1736259041513,-335.66198511,9.972e-05,2]
[347978210,1736259041522,-500.0,9.972e-05,2]
[347978211,1736259041531,-500.0,9.972e-05,2]
[347978212,1736259041541,-500.0,9.972e-05,2]
[347978213,1736259041550,-500.0,9.972e-05,2]
[347978214,1736259041559,-504.57,9.972e-05,2]
[347978215,1736259041572,-500.0,9.972e-05,2]
[347978216,1736259041581,-500.0,9.972e-05,2]
[347978217,1736259041590,-605.21628665,9.972e-05,2]
[347978218,1736259041600,-500.0,9.972e-05,2]
[347978219,1736259041609,-500.0,9.972e-05,2]
[347978220,1736259041619,-500.0,9.972e-05,2]
[347978221,1736259041628,-575.23,9.972e-05,2]
[347978222,1736259041638,-500.0,9.972e-05,2]
[347978223,1736259041648,-500.0,9.972e-05,2]
[347978224,1736259041658,-500.37059342,9.972e-05,2]
[347978225,1736259041667,-500.0,9.972e-05,2]
[347978226,1736259041677,-500.0,9.972e-05,2]
[347978227,1736259041687,-500.0,9.972e-05,2]
[347978228,1736259041698,-500.0,9.972e-05,2]
[347978229,1736259041708,-500.0,9.972e-05,2]
[347978230,1736259041717,-500.0,9.972e-05,2]
[347978231,1736259041727,-886.83,9.972e-05,2]
[347978232,1736259041736,-500.0,9.972e-05,2]
[347978233,1736259041745,-500.13202654,9.972e-05,2]
[347978234,1736259041755,-500.0,9.972e-05,2]
[347978235,1736259041765,-500.0,9.972e-05,2]
[347978236,1736259041774,-500.0,9.972e-05,2]
[347978237,1736259041783,-500.0,9.972e-05,2]
[347978238,1736259041792,-500.0,9.972e-05,2]
[347978239,1736259041801,-500.0,9.972e-05,2]
[347978240,1736259041811,-500.0,9.972e-05,2]
[347978241,1736259041822,-500.0,9.972e-05,2]
[347978242,1736259041832,-500.0,9.972e-05,2]
[347978243,1736259041841,-500.0,9.972e-05,2]
[347978244,1736259041850,-500.0,9.972e-05,2]
[347978245,1736259041859,-500.0,9.972e-05,2]
[347978246,1736259041869,-168.74442971,9.972e-05,2]
[347978247,1736259041878,-614.44,9.972e-05,2]
[347978248,1736259041888,-500.0,9.972e-05,2]
[347978249,1736259041898,-500.0,9.972e-05,2]
[347978250,1736259041907,-500.0,9.972e-05,2]
[347978251,1736259041916,-500.0,9.972e-05,2]
[347978252,1736259041925,-500.0,9.972e-05,2]
[347978253,1736259041935,-168.81051035,9.972e-05,2]
[347978254,1736259041944,-500.0,9.972e-05,2]
[347978255,1736259041954,-440.37382499,9.972e-05,2]
[347978256,1736259041964,-500.0,9.972e-05,2]
[347978257,1736259041973,-500.0,9.972e-05,2]
[347978258,1736259041983,-986.46,9.972e-05,2]
[347978259,1736259041992,-1555.46,9.972e-05,2]
[347978260,1736259042002,-500.0,9.972e-05,2]
[347978261,1736259042011,-500.0,9.972e-05,2]
[347978262,1736259042020,-500.0,9.972e-05,2]
[347978263,1736259042029,-500.0,9.972e-05,2]
[347978264,1736259042039,-500.0,9.972e-05,2]
[347978265,1736259042048,-357.54783271,9.972e-05,2]
[347978266,1736259042058,-500.0,9.972e-05,2]
[347978267,1736259042068,-500.0,9.972e-05,2]
[347978268,1736259042080,-500.90041718,9.972e-05,2]
[347978269,1736259042090,-500.0,9.972e-05,2]
[347978270,1736259042100,-500.0,9.972e-05,2]
[347978271,1736259042110,-500.0,9.972e-05,2]
[347978272,1736259042119,-500.0,9.972e-05,2]
[347978273,1736259042129,-2605.08,9.972e-05,2]
[347978274,1736259042140,-500.0,9.972e-05,2]
[347978275,1736259042150,-500.0,9.972e-05,2]
[347978276,1736259042161,-500.0,9.972e-05,2]
[347978277,1736259042171,-500.0,9.972e-05,2]
[347978278,1736259042180,-500.0,9.972e-05,2]
[347978279,1736259042191,-500.0,9.972e-05,2]
[347978280,1736259042200,-500.0,9.972e-05,2]
[347978281,1736259042210,-500.0,9.972e-05,2]
[347978282,1736259042220,-500.0,9.972e-05,2]
[347978283,1736259042229,-500.0,9.972e-05,2]
[347978284,1736259042239,-500.0,9.972e-05,2]
[347978285,1736259042249,-500.0,9.972e-05,2]
[347978286,1736259042259,-2071.85,9.972e-05,2]
[347978287,1736259042268,-500.0,9.972e-05,2]
[347978288,1736259042278,-500.02,9.972e-05,2]
[347978289,1736259042288,-500.0,9.972e-05,2]
[347978290,1736259042298,-500.0,9.972e-05,2]
[347978291,1736259042307,-500.0,9.972e-05,2]
[347978292,1736259042317,-500.0,9.972e-05,2]
[347978293,1736259042331,-210.4936075,9.972e-05,2]
[347978294,1736259042345,-500.0,9.972e-05,2]
[347978295,1736259042354,-1538.85,9.972e-05,2]
[347978296,1736259042363,-500.0,9.972e-05,2]
[347978297,1736259042372,-500.0,9.972e-05,2]
[347978298,1736259042383,-500.0,9.972e-05,2]
[347978299,1736259042393,-244.03533649,9.972e-05,2]
[347978300,1736259042403,-500.0,9.972e-05,2]
[347978301,1736259042413,-500.0,9.972e-05,2]
[347978302,1736259042424,-635.08,9.972e-05,2]
[347978303,1736259042434,-500.0,9.972e-05,2]
[347978304,1736259042444,-500.0,9.972e-05,2]
[347978305,1736259042453,-500.0,9.972e-05,2]
[347978306,1736259042462,-500.0,9.972e-05,2]
[347978307,1736259042472,-500.0,9.972e-05,2]
[347978308,1736259042482,-500.0,9.972e-05,2]
[347978309,1736259042492,-500.0,9.972e-05,2]
[347978311,1736259042501,-500.0,9.972e-05,2]
[347978312,1736259042511,-500.0,9.972e-05,2]
[347978313,1736259042521,-500.0,9.972e-05,2]
[347978314,1736259042530,-3492.69,9.972e-05,2]
[347978315,1736259042540,-500.0,9.972e-05,2]
[347978316,1736259042549,-500.0,9.972e-05,2]
[347978317,1736259042559,-500.0,9.972e-05,2]
[347978318,1736259042569,-500.0,9.972e-05,2]
[347978319,1736259042583,-500.0,9.972e-05,2]
[347978320,1736259042593,-500.0,9.972e-05,2]
[347978321,1736259042602,-500.0,9.972e-05,2]
[347978322,1736259042611,-500.0,9.972e-05,2]
[347978323,1736259042623,-500.0,9.972e-05,2]
[347978325,1736259042633,-500.0,9.972e-05,2]
[347978327,1736259042642,-500.0,9.972e-05,2]
[347978329,1736259042652,-2173.25,9.972e-05,2]
[347978331,1736259042664,-500.0,9.972e-05,2]
[347978332,1736259042673,-500.0,9.972e-05,2]
[347978333,1736259042683,-500.0,9.972e-05,2]
[347978334,1736259042693,-500.0,9.972e-05,2]
[347978335,1736259042704,-500.0,9.972e-05,2]
[347978336,1736259042713,-500.0,9.972e-05,2]
[347978337,1736259042723,-500.0,9.972e-05,2]
[347978338,1736259042733,-3881.76,9.972e-05,2]
[347978339,1736259042742,-500.0,9.972e-05,2]
[347978340,1736259042752,-696.18,9.972e-05,2]
[347978341,1736259042761,-500.0,9.972e-05,2]
[347978343,1736259042771,-500.0,9.972e-05,2]
[347978344,1736259042781,-500.0,9.972e-05,2]
[347978345,1736259042791,-500.0,9.972e-05,2]
[347978346,1736259042800,-3793.56,9.972e-05,2]
[347978347,1736259042810,-500.0,9.972e-05,2]
[347978348,1736259042819,-500.0,9.972e-05,2]
[347978349,1736259042831,-500.0,9.972e-05,2]
[347978350,1736259042841,-500.0,9.972e-05,2]
[347978351,1736259042851,-500.0,9.972e-05,2]
[347978352,1736259042861,-500.0,9.972e-05,2]
[347978353,1736259042870,-634.72,9.972e-05,2]
[347978354,1736259042880,-500.0,9.972e-05,2]
[347978355,1736259042890,-500.0,9.972e-05,2]
[347978356,1736259042899,-739.72,9.972e-05,2]
[347978357,1736259042908,-500.0,9.972e-05,2]
[347978358,1736259042918,-500.0,9.972e-05,2]
[347978359,1736259042927,-500.0,9.972e-05,2]
[347978360,1736259042936,-500.0,9.972e-05,2]
[347978361,1736259042945,-500.0,9.972e-05,2]
[347978362,1736259042955,-500.0,9.972e-05,2]
[347978363,1736259042965,-500.0,9.972e-05,2]
[347978364,1736259042975,-642.82,9.972e-05,2]
[347978365,1736259042985,-500.0,9.972e-05,2]
[347978366,1736259042996,-500.0,9.972e-05,2]
[347978367,1736259043005,-500.0,9.972e-05,2]
[347978368,1736259043015,-530.31,9.972e-05,2]
[347978369,1736259043025,-500.0,9.972e-05,2]
[347978370,1736259043034,-504.08,9.972e-05,2]
[347978371,1736259043043,-2071.93,9.972e-05,2]
[347978372,1736259043053,-500.0,9.972e-05,2]
[347978373,1736259043063,-581.98,9.972e-05,2]
[347978374,1736259043073,-500.0,9.972e-05,2]
[347978375,1736259043084,-649.91,9.972e-05,2]
[347978376,1736259043093,-500.0,9.972e-05,2]
[347978377,1736259043103,-500.0,9.972e-05,2]
[347978378,1736259043113,-500.0,9.972e-05,2]
[347978379,1736259043124,-500.0,9.972e-05,2]
[347978380,1736259043134,-500.0,9.972e-05,2]
[347978381,1736259043146,-1078.63,9.972e-05,2]
[347978382,1736259043156,-5125.92,9.972e-05,2]
[347978383,1736259043172,-500.0,9.972e-05,2]
[347978384,1736259043182,-500.0,9.972e-05,2]
[347978385,1736259043191,-716.49,9.972e-05,2]
[347978386,1736259043202,-500.0,9.972e-05,2]
[347978387,1736259043212,-500.0,9.972e-05,2]
[347978388,1736259043222,-543.72,9.972e-05,2]
[347978389,1736259043232,-500.0,9.972e-05,2]
[347978390,1736259043242,-854.65,9.972e-05,2]
[347978391,1736259043251,-500.0,9.972e-05,2]
[347978392,1736259043262,-500.0,9.972e-05,2]
[347978395,1736259043272,-708.16,9.972e-05,2]
[347978397,1736259043282,-692.54,9.972e-05,2]
[347978399,1736259043292,-500.0,9.972e-05,2]
[347978401,1736259043303,-500.0,9.972e-05,2]
[347978403,1736259043312,-807.8,9.972e-05,2]
[347978405,1736259043321,-500.0,9.972e-05,2]
[347978407,1736259043331,-500.0,9.972e-05,2]
[347978409,1736259043343,-658.15,9.972e-05,2]
[347978411,1736259043352,-500.0,9.972e-05,2]
[347978413,1736259043361,-500.0,9.972e-05,2]
[347978415,1736259043371,-470.2523349,9.972e-05,2]
[347978417,1736259043383,-500.0,9.972e-05,2]
[347978418,1736259043392,-500.0,9.972e-05,2]
[347978419,1736259043403,-445.37345399,9.972e-05,2]
[347978420,1736259043413,-500.0,9.972e-05,2]
[347978421,1736259043423,-500.0,9.972e-05,2]
[347978422,1736259043432,-500.0,9.972e-05,2]
[347978423,1736259043442,-500.0,9.972e-05,2]
[347978424,1736259043452,-500.0,9.972e-05,2]
[347978425,1736259043462,-2981.4,9.972e-05,2]
[347978426,1736259043472,-500.0,9.972e-05,2]
[347978427,1736259043482,-500.0,9.972e-05,2]
[347978428,1736259043491,-606.03,9.972e-05,2]
[347978429,1736259043501,-500.0,9.972e-05,2]
[347978430,1736259043510,-500.0,9.972e-05,2]
[347978431,1736259043521,-500.0,9.972e-05,2]
[347978432,1736259043532,-500.0,9.972e-05,2]
[347978433,1736259043542,-500.0,9.972e-05,2]
[347978434,1736259043551,-500.0,9.972e-05,2]
[347978435,1736259043561,-500.0,9.972e-05,2]
[347978436,1736259043570,-500.0,9.972e-05,2]
[347978437,1736259043582,-822.93,9.972e-05,2]
[347978438,1736259043592,-500.0,9.972e-05,2]
[347978439,1736259043602,-500.0,9.972e-05,2]
[347978440,1736259043612,-529.41,9.972e-05,2]
[347978441,1736259043621,-500.0,9.972e-05,2]
[347978442,1736259043632,-500.0,9.972e-05,2]
[347978443,1736259043642,-911.13,9.972e-05,2]
[347978444,1736259043652,-500.0,9.972e-05,2]
[347978445,1736259043662,-500.0,9.972e-05,2]
[347978446,1736259043672,-500.0,9.972e-05,2]
[347978447,1736259043681,-500.0,9.972e-05,2]
[347978448,1736259043690,-500.0,9.972e-05,2]
[347978449,1736259043699,-1142.1,9.972e-05,2]
[347978450,1736259043709,-500.0,9.972e-05,2]
[347978451,1736259043718,-500.0,9.972e-05,2]
[347978452,1736259043728,-500.0,9.972e-05,2]
[347978453,1736259043738,-500.0,9.972e-05,2]
[347978454,1736259043748,-500.0,9.972e-05,2]
[347978455,1736259043757,-500.0,9.972e-05,2]
[347978456,1736259043766,-500.0,9.972e-05,2]
[347978457,1736259043776,-500.0,9.972e-05,2]
[347978458,1736259043786,-500.0,9.972e-05,2]
[347978459,1736259043796,-500.0,9.972e-05,2]
[347978460,1736259043806,-1113.35,9.972e-05,2]
[347978461,1736259043815,-500.0,9.972e-05,2]
[347978462,1736259043826,-500.0,9.972e-05,2]
[347978463,1736259043835,-732.89,9.972e-05,2]
[347978464,1736259043844,-500.0,9.972e-05,2]
[347978465,1736259043854,-500.0,9.972e-05,2]
[347978466,1736259043863,-500.0,9.972e-05,2]
[347978467,1736259043873,-500.0,9.972e-05,2]
[347978468,1736259043883,-500.0,9.972e-05,2]
[347978469,1736259043893,-500.0,9.972e-05,2]
[347978470,1736259043903,-500.0,9.972e-05,2]
[347978471,1736259043911,-500.0,9.972e-05,2]
[347978472,1736259043921,-500.0,9.972e-05,2]
[347978473,1736259043930,-500.0,9.972e-05,2]
[347978474,1736259043939,-500.0,9.972e-05,2]
[347978475,1736259043949,-500.0,9.972e-05,2]
[347978476,1736259043958,-713.54,9.972e-05,2]
[347978477,1736259043967,-500.0,9.972e-05,2]
[347978478,1736259043977,-500.0,9.972e-05,2]
[347978479,1736259043986,-500.0,9.972e-05,2]
[347978480,1736259043995,-500.0,9.972e-05,2]
[347978481,1736259044005,-500.0,9.972e-05,2]
[347978482,1736259044015,-586.67,9.972e-05,2]
[347978483,1736259044024,-500.0,9.972e-05,2]
[347978484,1736259044033,-500.0,9.972e-05,2]
[347978485,1736259044043,-500.0,9.972e-05,2]
[347978486,1736259044052,-500.0,9.972e-05,2]
[347978487,1736259044062,-500.0,9.972e-05,2]
[347978488,1736259044072,-500.0,9.972e-05,2]
[347978489,1736259044084,-500.0,9.972e-05,2]
[347978490,1736259044093,-500.0,9.972e-05,2]
[347978491,1736259044102,-1611.37,9.972e-05,2]
[347978492,1736259044112,-500.0,9.972e-05,2]
[347978493,1736259044122,-500.0,9.972e-05,2]
[347978494,1736259044132,-1215.28,9.972e-05,2]
[347978495,1736259044142,-500.0,9.972e-05,2]
[347978496,1736259044152,-500.0,9.972e-05,2]
[347978497,1736259044162,-500.0,9.972e-05,2]
[347978498,1736259044172,-786.04,9.972e-05,2]
[347978499,1736259044182,-500.0,9.972e-05,2]
[347978500,1736259044191,-500.0,9.972e-05,2]
[347978501,1736259044201,-500.0,9.972e-05,2]
[347978502,1736259044210,-1224.53,9.972e-05,2]
[347978503,1736259044220,-500.0,9.972e-05,2]
[347978504,1736259044230,-500.0,9.972e-05,2]
[347978505,1736259044240,-1683.27,9.972e-05,2]
[347978506,1736259044249,-500.0,9.972e-05,2]
[347978507,1736259044259,-500.0,9.972e-05,2]
[347978508,1736259044268,-500.0,9.972e-05,2]
[347978509,1736259044277,-500.0,9.972e-05,2]
[347978510,1736259044286,-500.0,9.972e-05,2]
[347978511,1736259044295,-1162.37,9.972e-05,2]
[347978512,1736259044304,-500.0,9.972e-05,2]
[347978513,1736259044314,-500.0,9.972e-05,2]
[347978514,1736259044323,-2097.44,9.973e-05,2]
[347978515,1736259044334,-500.0,9.973e-05,2]
[347978516,1736259044347,-1762.13,9.973e-05,2]
[347978517,1736259044357,-500.0,9.973e-05,2]
[347978518,1736259044366,-500.0,9.973e-05,2]
[347978519,1736259044376,-500.0,9.973e-05,2]
[347978520,1736259044387,-2072.97,9.973e-05,2]
[347978521,1736259044396,-500.0,9.973e-05,2]
[347978522,1736259044406,-500.0,9.973e-05,2]
[347978523,1736259044417,-500.0,9.973e-05,2]
[347978524,1736259044426,-500.0,9.973e-05,2]
[347978525,1736259044436,-500.0,9.973e-05,2]
[347978526,1736259044445,-1739.07,9.973e-05,2]
[347978527,1736259044455,-500.0,9.973e-05,2]
[347978528,1736259044464,-500.0,9.973e-05,2]
[347978529,1736259044474,-526.9,9.973e-05,2]
[347978530,1736259044483,-500.0,9.973e-05,2]
[347978531,1736259044493,-500.0,9.973e-05,2]
[347978532,1736259044502,-5711.78,9.973e-05,2]
[347978533,1736259044512,-500.0,9.973e-05,2]
[347978534,1736259044521,-556.57,9.973e-05,2]
[347978535,1736259044531,-500.0,9.973e-05,2]
[347978536,1736259044541,-500.0,9.973e-05,2]
[347978537,1736259044551,-905.79,9.973e-05,2]
[347978538,1736259044560,-2024.87,9.973e-05,2]
[347978539,1736259044780,-500.0,9.973e-05,2]
[347978540,1736259044790,-500.0,9.973e-05,2]
[347978541,1736259044800,-500.0,9.973e-05,2]
[347978542,1736259044809,-500.0,9.973e-05,2]
[347978543,1736259044818,-684.18,9.973e-05,2]
[347978544,1736259044827,-3304.34,9.973e-05,2]
[347978545,1736259044837,-1665.02,9.973e-05,2]
[347978546,1736259044846,-2019.9,9.973e-05,2]
[347978547,1736259044856,-500.0,9.973e-05,2]
[347978548,1736259044866,-829.4,9.973e-05,2]
[347978549,1736259044875,-3244.82,9.973e-05,2]
[347978550,1736259044885,-500.0,9.973e-05,2]
[347978551,1736259044895,-1232.32,9.973e-05,2]
[347978552,1736259044904,-835.84,9.973e-05,2]
[347978553,1736259044914,-557.9,9.973e-05,2]
[347978554,1736259044923,-1275.66,9.973e-05,2]
[347978555,1736259044932,-760.29,9.973e-05,2]
[347978556,1736259044941,-2719.27,9.973e-05,2]
[347978557,1736259044951,-2971.79,9.973e-05,2]
[347978558,1736259044960,-2932.38,9.973e-05,2]
[347978559,1736259044970,-1714.17,9.973e-05,2]
[347978560,1736259044979,-150.0,9.981e-05,2]
[347978561,1736259044988,-1206.48878289,9.998e-05,3]
[347978562,1736259044998,-1552.68,9.999e-05,2]
[347978563,1736259045008,-1552.68,9.999e-05,2]
[347978564,1736259045018,-1552.68,9.999e-05,2]
[347978565,1736259045028,-1552.68,9.999e-05,2]
[347978566,1736259045038,-1552.68,9.999e-05,2]
[347978567,1736259045048,-1552.68,9.999e-05,2]
[347978568,1736259045057,-825.7,9.999e-05,2]
[347978569,1736259045068,-1856.69,9.999e-05,2]
[347978570,1736259045078,-500.0,9.999e-05,2]
[347978571,1736259045088,-1067.63,9.999e-05,2]
[347978572,1736259045098,-1317.9,9.999e-05,2]
[347978573,1736259045107,-776.97,9.999e-05,2]
[347978574,1736259045117,-2817.1,9.999e-05,2]
[347978575,1736259045127,-10455.72,9.999e-05,2]
[347978576,1736259045136,-2247.27,9.999e-05,2]
[347978577,1736259045147,-3971.17,9.999e-05,2]
[347978578,1736259045158,-1196.41,9.999e-05,2]
[347978579,1736259045168,-5209.49,9.999e-05,2]
[347978580,1736259045179,-1104.63,9.999e-05,2]
[347978581,1736259045190,-500.0,9.999e-05,2]
[347978582,1736259045200,-1530.86,9.999e-05,2]
[347978583,1736259045210,-500.0,0.0001,2]
[347978584,1736259045219,-18116.85601649,0.0001,2]
[347978585,1736259045230,-5600.0,0.0001,3]
[347978586,1736259045240,-167.44256162,0.0001,2]
[347978587,1736259045249,-167.44256142,0.0001,2]
[347978588,1736259045259,-167.44256142,0.0001,2]
[347978589,1736259045268,-167.44256142,0.0001,2]
[347978590,1736259045277,-167.44256142,0.0001,2]
[347978591,1736259045287,-167.44256142,0.0001,2]
[347978592,1736259045296,-167.44256142,0.0001,2]
[347978593,1736259045305,-167.44256142,0.0001,2]
[347978594,1736259045315,-167.44256142,0.00010003,2]
[347978595,1736259045324,-150.0,0.00010007,2]
[347978596,1736259045337,-150.0,0.00010007,2]
[347978597,1736259045352,-153.0,0.00010024,2]
[347978598,1736259045362,-500.0,0.00010027,2]
[347978599,1736259045371,-153.0,0.00010029,2]
[347978600,1736259045383,-153.0,0.00010031,2]
[347978601,1736259045393,-153.0,0.00010033,2]
[347978602,1736259045402,-153.0,0.00010036,2]
[347978603,1736259045413,-153.0,0.00010039,2]
[347978604,1736259045422,-1552.68,0.0001004,2]
[347978605,1736259045432,-1552.68,0.00010041,2]
[347978606,1736259045442,-1491.33,0.00010041,2]
[347978607,1736259045451,-4602.92,0.00010041,2]